[Event "Late-Titled-Tuesday-Blitz-April-02-2024"]
[Site "Chess.com"]
[Date "2024.04.02"]
[Round "11"]
[White "Felix-Rose"]
[Black "PawnEatingZombie"]
[Result "0-1"]
[WhiteElo "2289"]
[BlackElo "2194"]
[TimeControl "180+1"]
[EndTime "16:04:07 PDT"]
[Termination "PawnEatingZombie won by checkmate"]

1. e4 {[%clk 0:03:00.2]} 1... c5 {[%clk 0:02:59.3]} 2. Nf3 {[%clk 0:03:00.5]}
2... Nc6 {[%clk 0:02:59.4]} 3. d4 {[%clk 0:03:01]} 3... cxd4 {[%clk 0:03:00]} 4.
Nxd4 {[%clk 0:03:01.9]} 4... e5 {[%clk 0:03:00.1]} 5. Nb5 {[%clk 0:03:02]} 5...
d6 {[%clk 0:03:00.7]} 6. N1c3 {[%clk 0:03:01.9]} 6... a6 {[%clk 0:02:58.2]} 7.
Na3 {[%clk 0:03:02]} 7... Be7 {[%clk 0:02:58.8]} 8. Nc4 {[%clk 0:03:00.7]} 8...
b5 {[%clk 0:02:55.9]} 9. Ne3 {[%clk 0:02:59.6]} 9... Nf6 {[%clk 0:02:55.2]} 10.
g3 {[%clk 0:02:54]} 10... h5 {[%clk 0:02:50.4]} 11. Bg2 {[%clk 0:02:50.5]} 11...
h4 {[%clk 0:02:49.9]} 12. O-O {[%clk 0:02:50.6]} 12... hxg3 {[%clk 0:02:38.4]}
13. hxg3 {[%clk 0:02:49.6]} 13... Nd4 {[%clk 0:02:37]} 14. Ncd5 {[%clk
0:02:47.6]} 14... Bh3 {[%clk 0:02:12.7]} 15. c3 {[%clk 0:02:41.2]} 15... Nc6
{[%clk 0:02:10]} 16. a4 {[%clk 0:02:38.1]} 16... Rb8 {[%clk 0:01:46.1]} 17. axb5
{[%clk 0:02:34.7]} 17... axb5 {[%clk 0:01:46.2]} 18. Ra6 {[%clk 0:02:29.5]}
18... Qc8 {[%clk 0:01:39.2]} 19. Nxf6+ {[%clk 0:00:56.1]} 19... Bxf6 {[%clk
0:01:36.6]} 20. Ra2 {[%clk 0:00:23.5]} 20... Bxg2 {[%clk 0:01:32.2]} 21. Kxg2
{[%clk 0:00:23.7]} 21... Qh3+ {[%clk 0:01:30.4]} 22. Kf3 {[%clk 0:00:24.2]}
22... Qh5+ {[%clk 0:01:13.1]} 23. Ng4 {[%clk 0:00:24.1]} 23... Be7 {[%clk
0:01:05.4]} 24. Ke3 {[%clk 0:00:19.5]} 24... f5 {[%clk 0:00:40.2]} 25. exf5
{[%clk 0:00:18.2]} 25... Qxf5 {[%clk 0:00:37.7]} 26. Qf3 {[%clk 0:00:17.2]}
26... Qd7 {[%clk 0:00:29.1]} 27. Ra6 {[%clk 0:00:16.1]} 27... Rc8 {[%clk
0:00:26.3]} 28. Ke2 {[%clk 0:00:16.5]} 28... d5 {[%clk 0:00:20.1]} 29. Rh1
{[%clk 0:00:12.4]} 29... Rf8 {[%clk 0:00:19.4]} 30. Qg2 {[%clk 0:00:12.2]} 30...
b4 {[%clk 0:00:17.4]} 31. f3 {[%clk 0:00:11.8]} 31... bxc3 {[%clk 0:00:17.2]}
32. bxc3 {[%clk 0:00:12.2]} 32... d4 {[%clk 0:00:17.7]} 33. cxd4 {[%clk
0:00:12.3]} 33... Nxd4+ {[%clk 0:00:17.6]} 34. Kf1 {[%clk 0:00:12.8]} 34...
Rxc1+ {[%clk 0:00:16.8]} 35. Kf2 {[%clk 0:00:12.4]} 35... Rc2+ {[%clk
0:00:16.6]} 36. Ke3 {[%clk 0:00:12.8]} 36... Rxg2 {[%clk 0:00:16.5]} 37. Ra8+
{[%clk 0:00:12.2]} 37... Bd8 {[%clk 0:00:15.6]} 38. Nxe5 {[%clk 0:00:12.6]}
38... Nf5+ {[%clk 0:00:12.9]} 39. Kf4 {[%clk 0:00:12.8]} 39... Qd4# {[%clk
0:00:12]} 0-1

[Event "Late-Titled-Tuesday-Blitz-April-02-2024"]
[Site "Chess.com"]
[Date "2024.04.02"]
[Round "11"]
[White "ImportedItalianMaple"]
[Black "rhwr"]
[Result "0-1"]
[WhiteElo "2509"]
[BlackElo "2324"]
[TimeControl "180+1"]
[EndTime "16:04:08 PDT"]
[Termination "rhwr won on time"]

1. e4 {[%clk 0:03:00.9]} 1... c5 {[%clk 0:03:00.3]} 2. Nf3 {[%clk 0:03:01.2]}
2... d6 {[%clk 0:03:00.3]} 3. Bb5+ {[%clk 0:03:01.4]} 3... Nd7 {[%clk
0:03:00.7]} 4. O-O {[%clk 0:03:01.6]} 4... a6 {[%clk 0:03:01.3]} 5. Bd3 {[%clk
0:03:01.4]} 5... Ngf6 {[%clk 0:03:01.4]} 6. c3 {[%clk 0:03:01.2]} 6... g6 {[%clk
0:03:01.8]} 7. Bc2 {[%clk 0:03:01.4]} 7... Bg7 {[%clk 0:03:02.5]} 8. d4 {[%clk
0:03:01.8]} 8... O-O {[%clk 0:03:02.4]} 9. Re1 {[%clk 0:03:00.7]} 9... Rb8
{[%clk 0:03:02.4]} 10. e5 {[%clk 0:02:57]} 10... Ne8 {[%clk 0:03:00.7]} 11. e6
{[%clk 0:02:44.3]} 11... fxe6 {[%clk 0:02:59.9]} 12. Ng5 {[%clk 0:02:44.9]}
12... Ndf6 {[%clk 0:02:59.5]} 13. dxc5 {[%clk 0:02:44.9]} 13... d5 {[%clk
0:02:56.4]} 14. Bf4 {[%clk 0:02:39.6]} 14... Ra8 {[%clk 0:02:55.5]} 15. Be5
{[%clk 0:02:08.3]} 15... Bd7 {[%clk 0:02:35]} 16. Nd2 {[%clk 0:02:00.6]} 16...
b6 {[%clk 0:02:32.7]} 17. cxb6 {[%clk 0:01:49.4]} 17... Qxb6 {[%clk 0:02:32.3]}
18. Ndf3 {[%clk 0:01:49]} 18... Ng4 {[%clk 0:01:56.9]} 19. Bd4 {[%clk
0:01:37.1]} 19... Bxd4 {[%clk 0:01:55.2]} 20. cxd4 {[%clk 0:01:25.3]} 20... Qxb2
{[%clk 0:01:40.6]} 21. Nxh7 {[%clk 0:00:40.2]} 21... Kxh7 {[%clk 0:01:25.6]} 22.
Rb1 {[%clk 0:00:22.7]} 22... Qxa2 {[%clk 0:01:14.1]} 23. Qe2 {[%clk 0:00:16.9]}
23... Qc4 {[%clk 0:00:59.8]} 24. Bd3 {[%clk 0:00:14]} 24... Qc7 {[%clk
0:00:49.9]} 25. Ng5+ {[%clk 0:00:13.2]} 25... Kg7 {[%clk 0:00:43.1]} 26. Qxg4
{[%clk 0:00:13.6]} 26... Qf4 {[%clk 0:00:36.6]} 27. Nxe6+ {[%clk 0:00:09.4]}
27... Bxe6 {[%clk 0:00:36.2]} 28. Qxe6 {[%clk 0:00:10.3]} 28... Qxf2+ {[%clk
0:00:35.7]} 29. Kh1 {[%clk 0:00:11.1]} 29... Nf6 {[%clk 0:00:15.3]} 30. Rf1
{[%clk 0:00:07.9]} 30... Qxd4 {[%clk 0:00:14.5]} 31. Qxe7+ {[%clk 0:00:07.8]}
31... Rf7 {[%clk 0:00:14.7]} 32. Qe2 {[%clk 0:00:07.3]} 32... Rh8 {[%clk
0:00:14.8]} 33. h3 {[%clk 0:00:06.8]} 33... Re8 {[%clk 0:00:11.7]} 34. Qc2
{[%clk 0:00:03.5]} 34... Re3 {[%clk 0:00:09.3]} 35. Bxg6 {[%clk 0:00:02.4]}
35... Rfe7 {[%clk 0:00:09]} 0-1

[Event "Late-Titled-Tuesday-Blitz-April-02-2024"]
[Site "Chess.com"]
[Date "2024.04.02"]
[Round "11"]
[White "gorgeous1083"]
[Black "Doublekk14"]
[Result "0-1"]
[WhiteElo "2245"]
[BlackElo "2364"]
[TimeControl "180+1"]
[EndTime "16:04:09 PDT"]
[Termination "Doublekk14 won on time"]

1. d4 {[%clk 0:03:00.9]} 1... Nf6 {[%clk 0:02:55.3]} 2. c4 {[%clk 0:03:01.4]}
2... e6 {[%clk 0:02:54.6]} 3. Nf3 {[%clk 0:03:01.6]} 3... d5 {[%clk 0:02:52.7]}
4. Nc3 {[%clk 0:03:02.2]} 4... c5 {[%clk 0:02:52.4]} 5. cxd5 {[%clk 0:03:01.8]}
5... exd5 {[%clk 0:02:52.3]} 6. Bg5 {[%clk 0:02:58.2]} 6... Be7 {[%clk
0:02:40.8]} 7. dxc5 {[%clk 0:02:54.7]} 7... O-O {[%clk 0:02:40.4]} 8. e3 {[%clk
0:02:53.6]} 8... Be6 {[%clk 0:02:37.9]} 9. b4 {[%clk 0:02:46.1]} 9... a5 {[%clk
0:02:37.1]} 10. a3 {[%clk 0:02:44.9]} 10... axb4 {[%clk 0:02:36.2]} 11. axb4
{[%clk 0:02:45.2]} 11... Rxa1 {[%clk 0:02:35.7]} 12. Qxa1 {[%clk 0:02:46.1]}
12... Nc6 {[%clk 0:02:31.5]} 13. Qb1 {[%clk 0:02:35.3]} 13... d4 {[%clk
0:02:18.7]} 14. exd4 {[%clk 0:02:13]} 14... Nxd4 {[%clk 0:02:18.3]} 15. Be2
{[%clk 0:02:05.8]} 15... Bf5 {[%clk 0:01:51.3]} 16. Bd3 {[%clk 0:01:57.8]} 16...
Nxf3+ {[%clk 0:01:48.9]} 17. gxf3 {[%clk 0:01:57.7]} 17... Bxd3 {[%clk
0:01:44.5]} 18. Qb3 {[%clk 0:01:46.9]} 18... Re8 {[%clk 0:01:41.5]} 19. Be3
{[%clk 0:01:46.3]} 19... Qd7 {[%clk 0:01:22.2]} 20. Rg1 {[%clk 0:01:43.1]} 20...
Qf5 {[%clk 0:01:21.7]} 21. f4 {[%clk 0:01:14]} 21... Ng4 {[%clk 0:01:11.3]} 22.
Nd5 {[%clk 0:00:59.4]} 22... Bf8 {[%clk 0:01:02.4]} 23. Rxg4 {[%clk 0:00:47.8]}
23... Be4 {[%clk 0:00:36.1]} 24. Rg5 {[%clk 0:00:42.6]} 24... Qe6 {[%clk
0:00:31.2]} 25. Re5 {[%clk 0:00:29.1]} 25... Qc6 {[%clk 0:00:20.3]} 26. Nc3
{[%clk 0:00:14]} 26... Bf3 {[%clk 0:00:16.8]} 27. Rxe8 {[%clk 0:00:12.4]} 27...
Qxe8 {[%clk 0:00:16.9]} 28. Qc4 {[%clk 0:00:10.1]} 28... Qd7 {[%clk 0:00:15.6]}
29. Qd4 {[%clk 0:00:09.2]} 29... Qc6 {[%clk 0:00:14.7]} 30. b5 {[%clk
0:00:08.1]} 30... Qe8 {[%clk 0:00:14.6]} 31. Nd5 {[%clk 0:00:05.3]} 31... Bxd5
{[%clk 0:00:12.3]} 32. Qxd5 {[%clk 0:00:05.2]} 32... Qxb5 {[%clk 0:00:13.2]} 33.
Bd4 {[%clk 0:00:03]} 33... Qc6 {[%clk 0:00:12.6]} 34. Qe5 {[%clk 0:00:02.6]}
34... Qe6 {[%clk 0:00:12.8]} 35. Qxe6 {[%clk 0:00:02.2]} 35... fxe6 {[%clk
0:00:12.9]} 36. Ke2 {[%clk 0:00:02.1]} 36... Kf7 {[%clk 0:00:12.6]} 0-1

[Event "Late-Titled-Tuesday-Blitz-April-02-2024"]
[Site "Chess.com"]
[Date "2024.04.02"]
[Round "11"]
[White "OlaaLa"]
[Black "Bilan_Danila"]
[Result "1-0"]
[WhiteElo "2435"]
[BlackElo "2540"]
[TimeControl "180+1"]
[EndTime "16:04:14 PDT"]
[Termination "OlaaLa won on time"]

1. c4 {[%clk 0:02:56.1]} 1... c6 {[%clk 0:02:58.9]} 2. e3 {[%clk 0:02:50.7]}
2... d5 {[%clk 0:02:59.8]} 3. d4 {[%clk 0:02:50.7]} 3... Nf6 {[%clk 0:03:00]} 4.
Qc2 {[%clk 0:02:48.4]} 4... e6 {[%clk 0:02:59]} 5. Nf3 {[%clk 0:02:47.8]} 5...
Bd7 {[%clk 0:02:59.3]} 6. Bd3 {[%clk 0:02:46.1]} 6... Bd6 {[%clk 0:02:59.5]} 7.
O-O {[%clk 0:02:45.4]} 7... c5 {[%clk 0:02:53.6]} 8. cxd5 {[%clk 0:02:43.4]}
8... Nxd5 {[%clk 0:02:52.4]} 9. dxc5 {[%clk 0:02:43.5]} 9... Nb4 {[%clk
0:02:49.7]} 10. Qb3 {[%clk 0:02:37.5]} 10... Nxd3 {[%clk 0:02:40.3]} 11. Qxd3
{[%clk 0:02:37.2]} 11... Bxc5 {[%clk 0:02:40.5]} 12. Qc3 {[%clk 0:02:37.5]}
12... Bf8 {[%clk 0:02:27.5]} 13. Rd1 {[%clk 0:02:34]} 13... Qc8 {[%clk
0:02:20.6]} 14. Qe5 {[%clk 0:02:22.3]} 14... Nc6 {[%clk 0:02:17.8]} 15. Qg3
{[%clk 0:02:22.2]} 15... g6 {[%clk 0:02:14.4]} 16. Ne5 {[%clk 0:02:17.5]} 16...
Nxe5 {[%clk 0:01:50.3]} 17. Qxe5 {[%clk 0:02:18.4]} 17... Rg8 {[%clk 0:01:51]}
18. Nc3 {[%clk 0:02:16.3]} 18... Bg7 {[%clk 0:01:42.1]} 19. Qd6 {[%clk
0:02:16.1]} 19... Qc6 {[%clk 0:01:35.6]} 20. Qa3 {[%clk 0:01:59]} 20... Bf8
{[%clk 0:00:50.6]} 21. Qb3 {[%clk 0:01:53.7]} 21... O-O-O {[%clk 0:00:47.2]} 22.
e4 {[%clk 0:01:50]} 22... Qb6 {[%clk 0:00:41.9]} 23. Qc2 {[%clk 0:01:46]} 23...
Bc6 {[%clk 0:00:38.8]} 24. Be3 {[%clk 0:01:44.7]} 24... Bc5 {[%clk 0:00:26.9]}
25. Nd5 {[%clk 0:01:43.7]} 25... exd5 {[%clk 0:00:21.3]} 26. Bxc5 {[%clk
0:01:42.8]} 26... Qc7 {[%clk 0:00:21.6]} 27. Bxa7 {[%clk 0:01:40.5]} 27... dxe4
{[%clk 0:00:19.4]} 28. Rdc1 {[%clk 0:01:34.7]} 28... Rd3 {[%clk 0:00:12.8]} 29.
Be3 {[%clk 0:01:31.5]} 29... Rgd8 {[%clk 0:00:12.6]} 30. h3 {[%clk 0:01:20.2]}
30... f5 {[%clk 0:00:09.7]} 31. g3 {[%clk 0:01:11.8]} 31... Rxe3 {[%clk
0:00:09.1]} 32. fxe3 {[%clk 0:01:10]} 32... Qxg3+ {[%clk 0:00:09.3]} 33. Qg2
{[%clk 0:01:09.1]} 33... Qxe3+ {[%clk 0:00:09.3]} 34. Qf2 {[%clk 0:00:59.5]}
34... Qxf2+ {[%clk 0:00:06.1]} 35. Kxf2 {[%clk 0:00:58.2]} 35... Rd2+ {[%clk
0:00:03.8]} 36. Ke3 {[%clk 0:00:58.4]} 36... Rxb2 {[%clk 0:00:03.8]} 37. a4
{[%clk 0:00:57.2]} 37... Rb3+ {[%clk 0:00:03.7]} 38. Kd4 {[%clk 0:00:55.6]}
38... e3 {[%clk 0:00:02.1]} 39. a5 {[%clk 0:00:53.8]} 39... e2 {[%clk
0:00:02.6]} 40. a6 {[%clk 0:00:52.6]} 40... Kb8 {[%clk 0:00:03.2]} 41. a7+
{[%clk 0:00:51.5]} 41... Ka8 {[%clk 0:00:03.4]} 42. Re1 {[%clk 0:00:49.9]} 42...
Rb2 {[%clk 0:00:03.7]} 43. Kc3 {[%clk 0:00:49.4]} 43... Rb5 {[%clk 0:00:04]} 44.
Rxe2 {[%clk 0:00:49.1]} 44... Rc5+ {[%clk 0:00:04.2]} 45. Kb4 {[%clk 0:00:47.8]}
45... Rb5+ {[%clk 0:00:04.6]} 46. Kc4 {[%clk 0:00:48.3]} 46... Rd5 {[%clk
0:00:04.6]} 47. Re8+ {[%clk 0:00:47.8]} 47... Bxe8 {[%clk 0:00:03.8]} 48. Kxd5
{[%clk 0:00:48.1]} 48... f4 {[%clk 0:00:03.5]} 49. Kc5 {[%clk 0:00:47.6]} 49...
f3 {[%clk 0:00:02.6]} 50. Kb6 {[%clk 0:00:47.8]} 50... Bc6 {[%clk 0:00:03]} 51.
Re1 {[%clk 0:00:47.3]} 1-0

[Event "Late-Titled-Tuesday-Blitz-April-02-2024"]
[Site "Chess.com"]
[Date "2024.04.02"]
[Round "11"]
[White "MikaelyanArman"]
[Black "AryanTari"]
[Result "0-1"]
[WhiteElo "2819"]
[BlackElo "2976"]
[TimeControl "180+1"]
[EndTime "16:04:16 PDT"]
[Termination "AryanTari won by resignation"]

1. e3 {[%clk 0:03:00.9]} 1... Nf6 {[%clk 0:02:57.5]} 2. b3 {[%clk 0:03:01.5]}
2... c5 {[%clk 0:02:57]} 3. Bb2 {[%clk 0:03:01.9]} 3... Nc6 {[%clk 0:02:57.7]}
4. Nf3 {[%clk 0:03:02.5]} 4... d5 {[%clk 0:02:55.9]} 5. Bb5 {[%clk 0:03:02.5]}
5... g6 {[%clk 0:02:49.5]} 6. Bxc6+ {[%clk 0:02:58.4]} 6... bxc6 {[%clk
0:02:50.4]} 7. O-O {[%clk 0:02:57.3]} 7... Bg7 {[%clk 0:02:50]} 8. Nc3 {[%clk
0:02:49]} 8... O-O {[%clk 0:02:36.6]} 9. Na4 {[%clk 0:02:49]} 9... c4 {[%clk
0:02:37.3]} 10. Qe2 {[%clk 0:02:42]} 10... Ba6 {[%clk 0:02:04.4]} 11. Nc5 {[%clk
0:02:39.3]} 11... Bb5 {[%clk 0:02:05]} 12. d3 {[%clk 0:02:11.2]} 12... Qa5
{[%clk 0:01:52.1]} 13. a4 {[%clk 0:02:01.2]} 13... Ba6 {[%clk 0:01:42.5]} 14.
Bd4 {[%clk 0:01:35]} 14... cxd3 {[%clk 0:01:34.2]} 15. cxd3 {[%clk 0:01:35.9]}
15... Bc8 {[%clk 0:01:32.2]} 16. Ne5 {[%clk 0:01:24.1]} 16... Qc7 {[%clk
0:01:32.4]} 17. Rac1 {[%clk 0:01:16.6]} 17... a5 {[%clk 0:01:30.1]} 18. f4
{[%clk 0:01:10.3]} 18... Ba6 {[%clk 0:01:12.9]} 19. Qf3 {[%clk 0:01:03.4]} 19...
Rfc8 {[%clk 0:01:04.6]} 20. Rc2 {[%clk 0:01:00.2]} 20... Ne8 {[%clk 0:00:50.7]}
21. Qh3 {[%clk 0:00:46.9]} 21... Nd6 {[%clk 0:00:33.2]} 22. f5 {[%clk 0:00:41]}
22... Nxf5 {[%clk 0:00:30.9]} 23. Rxf5 {[%clk 0:00:41]} 23... gxf5 {[%clk
0:00:31.8]} 24. Qxf5 {[%clk 0:00:40.9]} 24... Rf8 {[%clk 0:00:26.8]} 25. Qg4
{[%clk 0:00:31.3]} 25... Bc8 {[%clk 0:00:26.1]} 26. Qg3 {[%clk 0:00:29]} 26...
f6 {[%clk 0:00:24.1]} 27. Ne6 {[%clk 0:00:13.9]} 27... Bxe6 {[%clk 0:00:20.1]}
28. Rxc6 {[%clk 0:00:14.5]} 28... Qb7 {[%clk 0:00:12]} 29. Rb6 {[%clk 0:00:15]}
29... Qc8 {[%clk 0:00:11.2]} 30. Rc6 {[%clk 0:00:15.1]} 30... Qe8 {[%clk
0:00:10.5]} 31. Rxe6 {[%clk 0:00:13.7]} 31... fxe5 {[%clk 0:00:11.1]} 32. Bxe5
{[%clk 0:00:14.2]} 32... Qf7 {[%clk 0:00:10.7]} 33. h4 {[%clk 0:00:10.3]} 33...
Kh8 {[%clk 0:00:10.7]} 34. Kh2 {[%clk 0:00:09.7]} 34... Rg8 {[%clk 0:00:08.1]}
35. Rh6 {[%clk 0:00:07]} 35... Bxe5 {[%clk 0:00:07.1]} 36. Qxe5+ {[%clk
0:00:07.9]} 36... Qg7 {[%clk 0:00:07.8]} 37. Re6 {[%clk 0:00:04.3]} 37... Qxe5+
{[%clk 0:00:06.9]} 38. Rxe5 {[%clk 0:00:05.2]} 38... Rgb8 {[%clk 0:00:06.2]} 39.
Rxd5 {[%clk 0:00:02.4]} 39... Rxb3 {[%clk 0:00:06.8]} 40. h5 {[%clk 0:00:02.6]}
40... Rb4 {[%clk 0:00:07.3]} 41. h6 {[%clk 0:00:03.1]} 41... Rxa4 {[%clk
0:00:07.8]} 42. Kg3 {[%clk 0:00:03.2]} 42... Rb4 {[%clk 0:00:07.8]} 43. Kf3
{[%clk 0:00:03.3]} 43... a4 {[%clk 0:00:08.5]} 44. g4 {[%clk 0:00:03.7]} 44...
a3 {[%clk 0:00:09.2]} 0-1

[Event "Late-Titled-Tuesday-Blitz-April-02-2024"]
[Site "Chess.com"]
[Date "2024.04.02"]
[Round "11"]
[White "APOKALIPSA13"]
[Black "Koalaskakistis"]
[Result "0-1"]
[WhiteElo "2317"]
[BlackElo "2546"]
[TimeControl "180+1"]
[EndTime "16:04:17 PDT"]
[Termination "Koalaskakistis won on time"]

1. e4 {[%clk 0:02:59.8]} 1... c5 {[%clk 0:02:56.5]} 2. Nf3 {[%clk 0:02:59.9]}
2... Nc6 {[%clk 0:02:56.8]} 3. d4 {[%clk 0:02:59.9]} 3... cxd4 {[%clk
0:02:57.7]} 4. Nxd4 {[%clk 0:03:00.2]} 4... Nf6 {[%clk 0:02:57.2]} 5. Nxc6
{[%clk 0:02:59.4]} 5... bxc6 {[%clk 0:02:56]} 6. Nc3 {[%clk 0:02:59.4]} 6... e5
{[%clk 0:02:55.1]} 7. Bg5 {[%clk 0:02:57.4]} 7... h6 {[%clk 0:02:53]} 8. Bxf6
{[%clk 0:02:50]} 8... Qxf6 {[%clk 0:02:52.4]} 9. a3 {[%clk 0:02:50.1]} 9... Bc5
{[%clk 0:02:50.4]} 10. Qd2 {[%clk 0:02:49.5]} 10... Rb8 {[%clk 0:02:41.2]} 11.
Na4 {[%clk 0:02:47.1]} 11... Be7 {[%clk 0:02:33.1]} 12. O-O-O {[%clk 0:02:29.6]}
12... Qg6 {[%clk 0:02:26.4]} 13. Kb1 {[%clk 0:02:19.7]} 13... Qxe4 {[%clk
0:02:15.2]} 14. Nc3 {[%clk 0:02:03.9]} 14... Qf4 {[%clk 0:01:57.7]} 15. Qxf4
{[%clk 0:01:58.5]} 15... exf4 {[%clk 0:01:58.6]} 16. Re1 {[%clk 0:01:57]} 16...
d5 {[%clk 0:01:54.7]} 17. Bd3 {[%clk 0:01:52.3]} 17... Be6 {[%clk 0:01:54.9]}
18. Ka1 {[%clk 0:01:49.5]} 18... Kd7 {[%clk 0:01:49.9]} 19. Na4 {[%clk
0:01:34.7]} 19... c5 {[%clk 0:01:40.7]} 20. Rd1 {[%clk 0:01:30.2]} 20... Kc6
{[%clk 0:01:37.6]} 21. Rhe1 {[%clk 0:01:22.8]} 21... Bf6 {[%clk 0:01:36.3]} 22.
Be2 {[%clk 0:01:15]} 22... Rhd8 {[%clk 0:01:24.6]} 23. g3 {[%clk 0:01:05.6]}
23... fxg3 {[%clk 0:01:22.8]} 24. hxg3 {[%clk 0:01:05.5]} 24... c4 {[%clk
0:01:10.3]} 25. Ka2 {[%clk 0:00:57.8]} 25... d4 {[%clk 0:01:06.2]} 26. Bf3+
{[%clk 0:00:52.9]} 26... Kb5 {[%clk 0:01:05.6]} 27. b3 {[%clk 0:00:49.1]} 27...
cxb3+ {[%clk 0:00:47.5]} 28. cxb3 {[%clk 0:00:50]} 28... Rdc8 {[%clk 0:00:26.3]}
29. Rc1 {[%clk 0:00:44.8]} 29... Bxb3+ {[%clk 0:00:20.2]} 30. Kxb3 {[%clk
0:00:41]} 30... Ka5+ {[%clk 0:00:20.6]} 31. Ka2 {[%clk 0:00:40.5]} 31... Kxa4
{[%clk 0:00:17.8]} 32. Bc6+ {[%clk 0:00:21.7]} 32... Ka5 {[%clk 0:00:16.4]} 33.
Rc5+ {[%clk 0:00:19.7]} 33... Kb6 {[%clk 0:00:16.7]} 34. Rec1 {[%clk 0:00:19.6]}
34... a6 {[%clk 0:00:16]} 35. R5c4 {[%clk 0:00:17.8]} 35... Ka7 {[%clk
0:00:12.8]} 36. a4 {[%clk 0:00:06.4]} 36... d3 {[%clk 0:00:11.8]} 37. Bf3 {[%clk
0:00:04.9]} 37... Rxc4 {[%clk 0:00:09.9]} 38. Rxc4 {[%clk 0:00:04.6]} 38... Rb2+
{[%clk 0:00:10]} 39. Ka3 {[%clk 0:00:04.7]} 39... Rxf2 {[%clk 0:00:10.7]} 0-1

[Event "Late-Titled-Tuesday-Blitz-April-02-2024"]
[Site "Chess.com"]
[Date "2024.04.02"]
[Round "11"]
[White "Walter_White_Poland"]
[Black "The_Straightforward_Rook"]
[Result "0-1"]
[WhiteElo "2410"]
[BlackElo "2378"]
[TimeControl "180+1"]
[EndTime "16:04:17 PDT"]
[Termination "The_Straightforward_Rook won by checkmate"]

1. e4 {[%clk 0:03:00.9]} 1... c6 {[%clk 0:02:55.8]} 2. d4 {[%clk 0:02:59.8]}
2... d5 {[%clk 0:02:56.7]} 3. f3 {[%clk 0:02:59.9]} 3... Qb6 {[%clk 0:02:55.7]}
4. Nc3 {[%clk 0:02:59.2]} 4... e6 {[%clk 0:02:55.6]} 5. a3 {[%clk 0:02:44.2]}
5... Nf6 {[%clk 0:02:52.7]} 6. e5 {[%clk 0:02:40.3]} 6... Nfd7 {[%clk
0:02:52.4]} 7. f4 {[%clk 0:02:39.5]} 7... c5 {[%clk 0:02:51.6]} 8. Nf3 {[%clk
0:02:27]} 8... cxd4 {[%clk 0:02:50.1]} 9. Nb5 {[%clk 0:02:14.3]} 9... Nc6 {[%clk
0:02:45.4]} 10. Bd3 {[%clk 0:02:06.1]} 10... a6 {[%clk 0:02:41.9]} 11. Nd6+
{[%clk 0:02:05.7]} 11... Bxd6 {[%clk 0:02:41.1]} 12. exd6 {[%clk 0:02:06.6]}
12... h6 {[%clk 0:02:33.9]} 13. O-O {[%clk 0:02:04.8]} 13... O-O {[%clk
0:02:33.4]} 14. Qe1 {[%clk 0:01:56.8]} 14... Qc5 {[%clk 0:02:28.2]} 15. f5
{[%clk 0:01:50.1]} 15... Qxd6 {[%clk 0:02:16.6]} 16. Qh4 {[%clk 0:01:48]} 16...
e5 {[%clk 0:02:14.3]} 17. Qg3 {[%clk 0:01:22.7]} 17... Qf6 {[%clk 0:02:08.3]}
18. Nh4 {[%clk 0:01:06.8]} 18... e4 {[%clk 0:02:07]} 19. Be2 {[%clk 0:01:06.5]}
19... Re8 {[%clk 0:01:57.6]} 20. Bf4 {[%clk 0:01:02.8]} 20... Nf8 {[%clk
0:01:55]} 21. Qh3 {[%clk 0:00:40.9]} 21... Ne7 {[%clk 0:01:46.6]} 22. g4 {[%clk
0:00:40.1]} 22... Nh7 {[%clk 0:01:40.2]} 23. Qg3 {[%clk 0:00:38]} 23... Nc6
{[%clk 0:01:39]} 24. Ng2 {[%clk 0:00:34.5]} 24... Ng5 {[%clk 0:01:37.6]} 25. h4
{[%clk 0:00:32.4]} 25... Nh7 {[%clk 0:01:24.4]} 26. g5 {[%clk 0:00:22.3]} 26...
hxg5 {[%clk 0:01:24.1]} 27. hxg5 {[%clk 0:00:22.5]} 27... Qxf5 {[%clk
0:01:24.4]} 28. Bh5 {[%clk 0:00:20.7]} 28... g6 {[%clk 0:01:20.2]} 29. Be2
{[%clk 0:00:20.2]} 29... Qh3 {[%clk 0:01:18.5]} 30. Qxh3 {[%clk 0:00:20.1]}
30... Bxh3 {[%clk 0:01:19.4]} 31. Rfe1 {[%clk 0:00:17.9]} 31... Nf8 {[%clk
0:01:15]} 32. Nh4 {[%clk 0:00:17.5]} 32... Ne6 {[%clk 0:01:13.8]} 33. Bg3 {[%clk
0:00:16.4]} 33... Kg7 {[%clk 0:01:10.4]} 34. Kh2 {[%clk 0:00:15.8]} 34... Bf5
{[%clk 0:01:08.4]} 35. Nxf5+ {[%clk 0:00:15.6]} 35... gxf5 {[%clk 0:01:09.3]}
36. Rf1 {[%clk 0:00:15.3]} 36... Rh8+ {[%clk 0:01:08.2]} 37. Kg2 {[%clk
0:00:15.5]} 37... Kg6 {[%clk 0:01:08.8]} 38. Bd6 {[%clk 0:00:13.6]} 38... Rh7
{[%clk 0:01:04]} 39. Rh1 {[%clk 0:00:13.6]} 39... Rah8 {[%clk 0:01:04.6]} 40.
Rxh7 {[%clk 0:00:13.6]} 40... Rxh7 {[%clk 0:01:05.5]} 41. Rf1 {[%clk 0:00:12.8]}
41... Kxg5 {[%clk 0:01:02]} 42. c3 {[%clk 0:00:11.4]} 42... f4 {[%clk 0:00:59]}
43. Bd1 {[%clk 0:00:12.3]} 43... f3+ {[%clk 0:00:57.3]} 44. Kg3 {[%clk
0:00:12.1]} 44... f5 {[%clk 0:00:56.9]} 45. Rg1 {[%clk 0:00:10.7]} 45... Kf6
{[%clk 0:00:52]} 46. Kf2 {[%clk 0:00:07.4]} 46... Rh2+ {[%clk 0:00:50.4]} 47.
Bxh2 {[%clk 0:00:06.4]} 47... f4 {[%clk 0:00:42.7]} 48. cxd4 {[%clk 0:00:06]}
48... Ncxd4 {[%clk 0:00:41.7]} 49. Rg8 {[%clk 0:00:04.8]} 49... e3+ {[%clk
0:00:40.8]} 50. Ke1 {[%clk 0:00:04.9]} 50... f2+ {[%clk 0:00:39.3]} 51. Kf1
{[%clk 0:00:04.8]} 51... f3 {[%clk 0:00:36.2]} 52. Bxf3 {[%clk 0:00:04.9]} 52...
Nxf3 {[%clk 0:00:37.1]} 53. Bg3 {[%clk 0:00:04.1]} 53... Nd2+ {[%clk 0:00:35.7]}
54. Ke2 {[%clk 0:00:03.4]} 54... f1=Q+ {[%clk 0:00:36.6]} 55. Kxe3 {[%clk
0:00:03.8]} 55... Nc4# {[%clk 0:00:35.3]} 0-1